fUST/lending_fUST_20241111
["ID","MTS","AMOUNT","RATE_DAILY","PERIOD"]
[341974566,1731340232990,-500.0,0.00023995,2]
[341974567,1731340233000,-500.0,0.00023995,2]
[341974568,1731340233009,-500.0,0.00023995,2]
[341974569,1731340233019,-500.0,0.00023995,2]
[341974570,1731340233029,-905.67,0.00023995,2]
[341974571,1731340233039,-500.0,0.00023995,2]
[341974572,1731340233048,-500.0,0.00023995,2]
[341974573,1731340233057,-500.0,0.00023995,2]
[341974574,1731340233067,-500.0,0.00023995,2]
[341974575,1731340233077,-500.0,0.00023995,2]
[341974576,1731340233088,-500.0,0.00023995,2]
[341974577,1731340233099,-515.6673184,0.00023995,2]
[341974578,1731340233109,-665.67,0.00023995,2]
[341974579,1731340233119,-500.0,0.00023995,2]
[341974580,1731340233129,-500.0,0.00023995,2]
[341974581,1731340233138,-500.0,0.00023995,2]
[341974582,1731340233148,-500.0,0.00023995,2]
[341974583,1731340233157,-500.0,0.00023995,2]
[341974584,1731340233167,-500.0,0.00023995,2]
[341974585,1731340233176,-181.87836537,0.00023995,2]
[341974586,1731340233186,-500.0,0.00023995,2]
[341974588,1731340233196,-500.0,0.00023995,2]
[341974590,1731340233209,-500.0,0.00023995,2]
[341974591,1731340233219,-500.0,0.00023995,2]
[341974592,1731340233228,-500.0,0.00023995,2]
[341974593,1731340233238,-640.94899444,0.00023995,2]
[341974594,1731340233248,-512.1042587,0.00023995,2]
[341974595,1731340233258,-534.21381765,0.00023995,2]
[341974596,1731340233268,-500.0,0.00023995,2]
[341974597,1731340233277,-500.0,0.00023995,2]
[341974598,1731340233287,-505.01705267,0.00023995,2]
[341974599,1731340233297,-500.0,0.00023995,2]
[341974600,1731340233306,-500.0,0.00023995,2]
[341974601,1731340233316,-511.90733162,0.00023995,2]
[341974602,1731340233325,-500.0,0.00023995,2]
[341974603,1731340233335,-500.0,0.00023995,2]
[341974604,1731340233345,-325.92334198,0.00023995,2]
[341974605,1731340233354,-500.0,0.00023995,2]
[341974606,1731340233363,-500.0,0.00023995,2]
[341974607,1731340233373,-500.0,0.00023995,2]
[341974608,1731340233382,-500.0,0.00023995,2]
[341974609,1731340233391,-500.0,0.00023995,2]
[341974610,1731340233401,-500.0,0.00023995,2]
[341974611,1731340233411,-500.0,0.00023995,2]
[341974612,1731340233421,-500.0,0.00023995,2]
[341974613,1731340233431,-500.0,0.00023995,2]
[341974614,1731340233441,-500.0,0.00023995,2]
[341974615,1731340233451,-500.0,0.00023995,2]
[341974616,1731340233461,-500.0,0.00023995,2]
[341974617,1731340233471,-500.0,0.00023995,2]
[341974618,1731340233480,-500.0,0.00023995,2]
[341974619,1731340233491,-500.0,0.00023995,2]
[341974620,1731340233502,-500.0,0.00023995,2]
[341974621,1731340233513,-500.0,0.00023995,2]
[341974622,1731340233523,-509.63516688,0.00023995,2]
[341974623,1731340233534,-506.55,0.00023995,2]
[341974624,1731340233544,-500.0,0.00023995,2]
[341974625,1731340233554,-500.0,0.00023995,2]
[341974626,1731340233564,-500.0,0.00023995,2]
[341974627,1731340233573,-500.0,0.00023995,2]
[341974628,1731340233584,-500.0,0.00023995,2]
[341974629,1731340233594,-500.0,0.00023995,2]
[341974630,1731340233604,-500.0,0.00023995,2]
[341974631,1731340233613,-500.0,0.00023995,2]
[341974632,1731340233623,-500.0,0.00023995,2]
[341974633,1731340233632,-500.0,0.00023995,2]
[341974634,1731340233642,-500.0,0.00023995,2]
[341974635,1731340233652,-500.0,0.00023995,2]
[341974636,1731340233662,-500.0,0.00023995,2]
[341974637,1731340233673,-500.0,0.00023995,2]
[341974638,1731340233683,-500.0,0.00023995,2]
[341974639,1731340233694,-362.64,0.00023995,2]
[341974640,1731340233706,-500.0,0.00023995,2]
[341974641,1731340233717,-500.0,0.00023995,2]
[341974642,1731340233726,-500.0,0.00023995,2]
[341974643,1731340233737,-500.0,0.00023995,2]
[341974644,1731340233747,-500.0,0.00023995,2]
[341974645,1731340233757,-500.0,0.00023995,2]
[341974646,1731340233768,-665.67,0.00023996,2]
[341974647,1731340233778,-665.67,0.00023996,2]
[341974648,1731340233789,-665.67,0.00023996,2]
[341974649,1731340233799,-500.0,0.00023997,2]
[341974650,1731340233809,-500.0,0.00023997,2]
[341974651,1731340233822,-311.01808737,0.00023997,2]
[341974652,1731340233831,-506.84153475,0.00023997,2]
[341974653,1731340233841,-500.0,0.00023997,2]
[341974654,1731340233850,-497.98100556,0.00023997,2]
[341974655,1731340233862,-500.0,0.00023997,2]
[341974656,1731340233871,-500.0,0.00023997,2]
[341974657,1731340233882,-500.0,0.00023997,2]
[341974658,1731340233892,-643.62435138,0.00023997,2]
[341974659,1731340233904,-500.0,0.00023997,2]
[341974660,1731340233915,-505.97552978,0.00023997,2]
[341974661,1731340233925,-500.0,0.00023997,2]
[341974662,1731340233935,-306.17366826,0.00023997,2]
[341974663,1731340233945,-528.19269926,0.00023997,2]
[341974664,1731340233959,-500.0,0.00023997,2]
[341974665,1731340233968,-500.0,0.00023997,2]
[341974666,1731340233979,-500.0,0.00023997,2]
[341974667,1731340233989,-500.0,0.00023997,2]
[341974668,1731340233999,-359.45162605,0.00023997,2]
[341974669,1731340234009,-500.0,0.00023997,2]
[341974670,1731340234019,-501.40874256,0.00023997,2]
[341974671,1731340234029,-500.0,0.00023997,2]
[341974672,1731340234139,-502.66137345,0.00023997,2]
[341974673,1731340234152,-500.0,0.00023997,2]
[341974674,1731340234163,-500.0,0.00023997,2]
[341974675,1731340234174,-215.49538655,0.00023997,2]
[341974676,1731340234185,-501.57928355,0.00023997,2]
[341974677,1731340234195,-500.0,0.00023997,2]
[341974678,1731340234207,-502.42998683,0.00023997,2]
[341974679,1731340234218,-514.55172765,0.00023997,2]
[341974680,1731340234227,-505.16650514,0.00023997,2]
[341974681,1731340234237,-500.0,0.00023997,2]
[341974682,1731340234247,-500.0,0.00023997,2]
[341974683,1731340234257,-500.0,0.00023997,2]
[341974684,1731340234266,-500.0,0.00023997,2]
[341974685,1731340234276,-500.0,0.00023997,2]
[341974686,1731340234286,-500.0,0.00023997,2]
[341974687,1731340234295,-500.0,0.00023997,2]
[341974688,1731340234305,-500.0,0.00023997,2]
[341974689,1731340234315,-504.37363535,0.00023997,2]
[341974690,1731340234325,-500.0,0.00023997,2]
[341974691,1731340234335,-500.0,0.00023997,2]
[341974692,1731340234344,-500.0,0.00023997,2]
[341974693,1731340234354,-500.0,0.00023997,2]
[341974694,1731340234363,-500.0,0.00023997,2]
[341974695,1731340234373,-502.9430145,0.00023997,2]
[341974696,1731340234382,-173.77838457,0.00023997,2]
[341974697,1731340234392,-500.0,0.00023997,2]
[341974698,1731340234401,-500.0,0.00023997,2]
[341974699,1731340234411,-1127.46029277,0.00023997,2]
[341974700,1731340234421,-517.4959298,0.00023997,2]
[341974701,1731340234431,-608.34772815,0.00023997,2]
[341974702,1731340234440,-500.0,0.00023997,2]
[341974703,1731340234451,-500.0,0.00023997,2]
[341974704,1731340234461,-500.0,0.00023997,2]
[341974705,1731340234471,-500.0,0.00023997,2]
[341974706,1731340234480,-503.33226166,0.00023997,2]
[341974707,1731340234490,-503.39785584,0.00023997,2]
[341974708,1731340234500,-500.0,0.00023997,2]
[341974709,1731340234510,-500.0,0.00023997,2]
[341974710,1731340234521,-500.0,0.00023997,2]
[341974711,1731340234532,-500.0,0.00023997,2]
[341974712,1731340234542,-244.12115038,0.00023997,2]
[341974713,1731340234551,-500.0,0.00023997,2]
[341974714,1731340234561,-500.0,0.00023997,2]
[341974715,1731340234571,-500.0,0.00023997,2]
[341974716,1731340234581,-500.0,0.00023997,2]
[341974717,1731340234592,-500.0,0.00023997,2]
[341974718,1731340234602,-500.0,0.00023997,2]
[341974719,1731340234612,-500.0,0.00023997,2]
[341974720,1731340234622,-262.27791941,0.00023997,2]
[341974721,1731340234632,-500.0,0.00023997,2]
[341974722,1731340234642,-500.0,0.00023997,2]
[341974723,1731340234651,-500.0,0.00023997,2]
[341974724,1731340234661,-500.0,0.00023997,2]
[341974725,1731340234671,-500.0,0.00023997,2]
[341974726,1731340234680,-500.0,0.00023997,2]
[341974727,1731340234690,-500.0,0.00023997,2]
[341974728,1731340234702,-500.0,0.00023997,2]
[341974729,1731340234711,-500.0,0.00023997,2]
[341974730,1731340234721,-500.0,0.00023997,2]
[341974731,1731340234730,-805.55104607,0.00024169,2]
[341974732,1731340234740,-500.0,0.00024267,2]
[341974733,1731340234749,-500.0,0.00024267,2]
[341974734,1731340234760,-525.9144849,0.00024267,2]
[341974735,1731340234769,-500.0,0.00024267,2]
[341974736,1731340234779,-500.0,0.00024267,2]
[341974737,1731340234789,-228.84253596,0.00024268,2]
[341974738,1731340234798,-500.0,0.00024269,2]
[341974739,1731340234809,-536.82,0.00024269,2]
[341974740,1731340234824,-500.0,0.00024269,2]
[341974741,1731340234834,-500.0,0.00024269,2]
[341974742,1731340234843,-500.0,0.00024269,2]
[341974743,1731340234853,-500.0,0.00024269,2]
[341974744,1731340234864,-500.0,0.00024269,2]
[341974745,1731340234874,-500.0,0.00024269,2]
[341974746,1731340234883,-500.0,0.00024269,2]
[341974747,1731340234894,-500.0,0.00024269,2]
[341974748,1731340234903,-500.0,0.00024269,2]
[341974749,1731340234912,-500.0,0.00024269,2]
[341974750,1731340234922,-619.6,0.00024269,2]
[341974751,1731340234932,-477.78,0.00024269,2]
[341974752,1731340234942,-905.67,0.00024269,2]
[341974753,1731340234954,-445.99158171,0.00024269,2]
[341974754,1731340234969,-54.00841829,0.00024269,2]
[341974755,1731340234979,-500.0,0.00024269,2]
[341974756,1731340234989,-282.99158171,0.00024269,2]
[341974757,1731340235001,-247.56116745,0.00024269,2]
[341974758,1731340235011,-500.0,0.00024269,2]
[341974759,1731340235020,-500.0,0.00024269,2]
[341974760,1731340235030,-500.0,0.00024269,2]
[341974761,1731340235039,-500.0,0.00024269,2]
[341974762,1731340235049,-500.0,0.00024269,2]
[341974763,1731340235059,-500.0,0.00024269,2]
[341974764,1731340235068,-500.0,0.00024269,2]
[341974765,1731340235077,-500.0,0.00024269,2]
[341974766,1731340235087,-500.0,0.00024269,2]
[341974767,1731340235096,-500.0,0.00024269,2]
[341974768,1731340235106,-631.47,0.00024269,2]
[341974769,1731340235115,-500.0,0.00024269,2]
[341974770,1731340235124,-166.86486162,0.00024269,2]
[341974771,1731340235134,-500.0,0.00024269,2]
[341974772,1731340235144,-575.37,0.00024269,2]
[341974773,1731340235153,-500.0,0.00024269,2]
[341974774,1731340235163,-500.0,0.00024269,2]
[341974775,1731340235172,-637.08,0.00024269,2]
[341974776,1731340235182,-500.0,0.00024269,2]
[341974777,1731340235191,-500.0,0.00024269,2]
[341974778,1731340235202,-538.1,0.00024269,2]
[341974779,1731340235212,-500.0,0.00024269,2]
[341974780,1731340235222,-500.0,0.00024269,2]
[341974781,1731340235231,-500.0,0.00024269,2]
[341974782,1731340235240,-500.0,0.00024269,2]
[341974783,1731340235249,-500.0,0.00024269,2]
[341974784,1731340235260,-480.97295206,0.00024269,2]
[341974802,1731340238827,-500.0,0.00023993,2]
[341974803,1731340238837,-500.0,0.00023995,2]
[341974804,1731340238846,-500.0,0.00023996,2]
[341974805,1731340238856,-500.0,0.00023996,2]
[341974807,1731340238866,-500.0,0.00023996,2]
[341974809,1731340238876,-512.35776109,0.00023996,2]
[341974810,1731340238885,-442.47843214,0.00023996,2]
[341974812,1731340238895,-533.66863901,0.00023996,2]
[341974813,1731340238904,-19.02704794,0.00024269,2]
[341974814,1731340238914,-500.0,0.00024269,2]
[341974815,1731340238923,-500.0,0.00024269,2]
[341974816,1731340238933,-348.23077697,0.00024269,2]
[341974817,1731340238943,-500.0,0.00024269,2]
[341974818,1731340238954,-500.0,0.00024269,2]
[341974819,1731340238963,-500.0,0.00024269,2]
[341974820,1731340238973,-500.0,0.00024269,2]
[341974821,1731340238982,-500.0,0.00024269,2]
[341974822,1731340238991,-665.67,0.0002427,2]
[341974823,1731340239001,-369.99,0.00024271,2]
[341974824,1731340239011,-500.0,0.00024271,2]
[341974825,1731340239020,-500.0,0.00024271,2]
[341974826,1731340239029,-500.0,0.00024271,2]
[341974827,1731340239039,-504.31897831,0.00024271,2]
[341974828,1731340239049,-500.0,0.00024271,2]
[341974829,1731340239059,-512.22114221,0.00024271,2]
[341974830,1731340239068,-500.0,0.00024271,2]
[341974831,1731340239078,-500.0,0.00024271,2]
[341974832,1731340239087,-500.0,0.00024271,2]
[341974833,1731340239096,-500.0,0.00024271,2]
[341974834,1731340239106,-500.0,0.00024271,2]
[341974835,1731340239115,-500.0,0.00024271,2]
[341974836,1731340239125,-282.38,0.00024271,2]
[341974837,1731340239134,-188.55058,0.00024367,2]
[341974838,1731340239143,-500.0,0.00024535,2]
[341974839,1731340239152,-500.0,0.00024535,2]
[341974840,1731340239162,-500.0,0.00024535,2]
[341974841,1731340239171,-500.0,0.00024541,2]
[341974842,1731340239181,-500.0,0.00024541,2]
[341974843,1731340239190,-311.78852454,0.00024541,2]
[341974844,1731340239199,-500.0,0.00024541,2]
[341974845,1731340239213,-500.0,0.00024543,2]
[341974846,1731340239222,-543.42594254,0.00024543,2]
[341974847,1731340239235,-500.0,0.00024543,2]
[341974848,1731340239244,-500.0,0.00024543,2]
[341974849,1731340239254,-619.6,0.00024543,2]
[341974850,1731340239263,-905.67,0.00024543,2]
[341974851,1731340239273,-500.0,0.00024543,2]
[341974852,1731340239282,-500.0,0.00024543,2]
[341974853,1731340239291,-500.0,0.00024543,2]
[341974854,1731340239300,-500.0,0.00024543,2]
[341974855,1731340239309,-500.0,0.00024543,2]
[341974856,1731340239319,-500.0,0.00024543,2]
[341974857,1731340239328,-500.0,0.00024543,2]
[341974858,1731340239337,-500.0,0.00024543,2]
[341974859,1731340239346,-547.7228671,0.00024543,2]
[341974860,1731340239355,-500.0,0.00024543,2]
[341974861,1731340239364,-500.0,0.00024543,2]
[341974862,1731340239374,-500.0,0.00024543,2]
[341974863,1731340239383,-500.0,0.00024543,2]
[341974864,1731340239393,-500.0,0.00024543,2]
[341974865,1731340239403,-500.0,0.00024543,2]
[341974866,1731340239412,-634.46,0.00024543,2]
[341974867,1731340239422,-500.0,0.00024543,2]
[341974868,1731340239432,-500.0,0.00024543,2]
[341974869,1731340239442,-500.0,0.00024543,2]
[341974870,1731340239453,-500.0,0.00024543,2]
[341974871,1731340239465,-500.0,0.00024545,2]
[341974872,1731340239474,-500.0,0.00024545,2]
[341974873,1731340239484,-500.0,0.00024545,2]
[341974874,1731340239494,-394.97,0.00024545,2]
[341974875,1731340239503,-500.0,0.00024545,2]
[341974876,1731340239513,-665.67,0.00024598,2]
[341974877,1731340239523,-500.0,0.00024599,2]
[341974878,1731340239532,-500.0,0.00024599,2]
[341974879,1731340239542,-2629.725271,0.000246,2]
[341974880,1731340239552,-500.0,0.00024619,2]
[341974881,1731340239561,-500.0,0.00024658,2]
[341974882,1731340239571,-290.24869555,0.00024658,2]
[341974883,1731340239581,-500.0,0.00024744,2]
[341974884,1731340239591,-500.0,0.00024752,2]
[341974885,1731340239601,-412.49628964,0.00024753,2]
[341974886,1731340239611,-500.0,0.00024753,2]
[341974887,1731340239622,-500.0,0.00024753,2]
[341974888,1731340239632,-500.0,0.00024815,2]
[341974889,1731340239641,-500.0,0.00024815,2]
[341974890,1731340239650,-573.95,0.00024815,2]
[341974891,1731340239660,-500.0,0.00024817,2]
[341974892,1731340239669,-484.44,0.00024817,2]
[341974893,1731340239679,-619.6,0.00024817,2]
[341974894,1731340239688,-905.67,0.00024817,2]
[341974895,1731340239697,-500.0,0.00024817,2]
[341974896,1731340239713,-297.4,0.00024817,2]
[341974897,1731340239722,-206.58,0.00024817,2]
[341974898,1731340239732,-500.0,0.00024817,2]
[341974899,1731340239741,-500.0,0.00024817,2]
[341974900,1731340239751,-500.0,0.00024817,2]
[341974901,1731340239760,-500.0,0.00024817,2]
[341974902,1731340239769,-500.0,0.00024817,2]
[341974903,1731340239779,-500.0,0.00024817,2]
[341974904,1731340239788,-500.0,0.00024817,2]
[341974905,1731340239798,-500.0,0.00024817,2]
[341974906,1731340239807,-500.0,0.00024817,2]
[341974907,1731340239817,-500.0,0.00024817,2]
[341974908,1731340239830,-500.0,0.00024817,2]
[341974909,1731340239840,-500.0,0.00024817,2]
[341974910,1731340239849,-500.0,0.00024817,2]
[341974911,1731340239858,-500.0,0.00024819,2]
[341974912,1731340239868,-500.0,0.00024819,2]
[341974913,1731340239878,-665.67,0.00024872,2]
[341974914,1731340239887,-500.0,0.00024873,2]
[341974915,1731340239897,-500.0,0.00025089,2]
[341974916,1731340239907,-500.0,0.00025089,2]
[341974917,1731340239917,-500.0,0.00025091,2]
[341974918,1731340239926,-619.6,0.00025091,2]
[341974920,1731340239936,-905.67,0.00025091,2]
[341974922,1731340239945,-500.0,0.00025091,2]
[341974925,1731340239958,-500.0,0.00025091,2]
[341974926,1731340239968,-500.0,0.00025091,2]
[341974927,1731340239977,-500.0,0.00025091,2]
[341974928,1731340239986,-500.0,0.00025091,2]
[341974929,1731340239995,-500.0,0.00025091,2]
[341974930,1731340240004,-500.0,0.00025091,2]
[341974932,1731340240013,-500.0,0.00025091,2]
[341974933,1731340240023,-500.0,0.00025091,2]
[341974934,1731340240031,-316.5,0.00025091,2]
[341974935,1731340240040,-500.0,0.00025091,2]
[341974936,1731340240050,-500.0,0.00025091,2]
[341974937,1731340240059,-500.0,0.00025091,2]
[341974938,1731340240068,-500.0,0.00025093,2]
[341974939,1731340240078,-500.0,0.00025093,2]
[341974940,1731340240087,-500.0,0.00025147,2]
[341974941,1731340240096,-2150.15,0.000253,2]
[341974942,1731340240105,-500.0,0.00025363,2]
[341974943,1731340240114,-619.6,0.00025365,2]
[341974944,1731340240124,-905.67,0.00025365,2]
[341974945,1731340240133,-500.0,0.00025365,2]
[341974946,1731340240143,-363.79,0.00025365,2]
[341974947,1731340240152,-500.0,0.00025365,2]
[341974948,1731340240162,-500.0,0.00025365,2]
[341974950,1731340240171,-177.95700002,0.00025365,2]
[341974951,1731340240180,-500.0,0.00025365,2]
[341974953,1731340240190,-500.0,0.00025365,2]
[341974955,1731340240199,-500.0,0.00025365,2]
[341974957,1731340240211,-500.0,0.00025365,2]
[341974959,1731340240220,-500.0,0.00025365,2]
[341974960,1731340240229,-628.53,0.00025365,2]
[341974962,1731340240239,-665.67,0.00025366,2]
[341974964,1731340240248,-500.0,0.00025367,2]
[341974966,1731340240258,-500.0,0.00025367,2]
[341974967,1731340240267,-500.0,0.00025421,2]
[341974968,1731340240276,-175.31,0.00025593,10]
[341974969,1731340240285,-500.0,0.00025637,2]
[341974970,1731340240295,-619.6,0.00025639,2]
[341974971,1731340240304,-905.67,0.00025639,2]
[341974973,1731340240313,-500.0,0.00025639,2]
[341974974,1731340240323,-500.0,0.00025639,2]
[341974976,1731340240332,-500.0,0.00025639,2]
[341974977,1731340240342,-500.0,0.00025639,2]
[341974978,1731340240352,-377.37,0.00025639,2]
[341974979,1731340240361,-207.93205194,0.00025639,2]
[341974980,1731340240378,-292.06794806,0.00025639,2]
[341974981,1731340240388,-500.0,0.00025639,2]
[341974982,1731340240397,-500.0,0.00025639,2]
[341974983,1731340240406,-500.0,0.00025641,2]
[341974984,1731340240416,-297.47,0.00025641,2]
[341974985,1731340240425,-500.0,0.00025695,2]
[341974986,1731340240434,-805.55104607,0.00025893,2]
[341974987,1731340240443,-1000.0,0.00025905,2]
[341974988,1731340240457,-1000.0,0.00025905,2]
[341974989,1731340240466,-1000.0,0.00025905,2]
[341974990,1731340240476,-178.03486559,0.00025911,2]
[341974991,1731340240486,-619.6,0.00025913,2]
[341974992,1731340240495,-905.67,0.00025913,2]
[341974993,1731340240504,-282.50614028,0.00025913,2]
[341975018,1731340243673,-300.36854448,0.00023995,2]
[341975019,1731340243683,-205.14977801,0.00024535,2]
[341975020,1731340243693,-449.77855225,0.00024535,2]
[341975021,1731340243703,-217.49385972,0.00025913,2]
[341975022,1731340243717,-500.0,0.00025913,2]
[341975023,1731340243727,-500.0,0.00025913,2]
[341975024,1731340243738,-500.0,0.00025913,2]
[341975025,1731340243749,-339.14134282,0.00025913,2]
[341975026,1731340243803,-33.45150109,0.00025913,2]
[341975027,1731340243816,-12.85715609,0.00025913,2]
[341975028,1731340243829,-500.0,0.00025913,2]
[341975029,1731340243838,-500.0,0.00025915,2]
[341975030,1731340243847,-500.0,0.00025969,2]
[341975031,1731340243857,-1000.0,0.00025989,2]
[341975032,1731340243869,-420.0,0.00026018,2]
[341975033,1731340243879,-1000.0,0.00026114,2]
[341975034,1731340243888,-1000.0,0.00026121,2]
[341975035,1731340243899,-1000.0,0.00026123,2]
[341975036,1731340243910,-1030.92247615,0.00026123,2]
[341975037,1731340243921,-665.67,0.00026169,2]
[341975038,1731340243931,-619.6,0.00026187,2]
[341975039,1731340243940,-905.67,0.00026187,2]
[341975040,1731340243950,-500.0,0.00026187,2]
[341975041,1731340243962,-500.0,0.00026187,2]
[341975042,1731340243972,-370.65,0.00026187,2]
[341975043,1731340243982,-15.04126389,0.00026187,2]
[341975044,1731340243994,-484.95873611,0.00026187,2]
[341975045,1731340244004,-500.0,0.00026187,2]
[341975046,1731340244014,-500.0,0.00026189,2]
[341975047,1731340244024,-397.27959093,0.00026243,2]
[341975048,1731340244036,-102.72040907,0.00026243,2]
[341975049,1731340244046,-331.7567042,0.00026384,2]
[341975050,1731340244056,-405.73402061,0.00026391,2]
[341975095,1731340246338,-14.26597939,0.00026391,2]
[341975097,1731340246348,-619.6,0.00026461,2]
[341975099,1731340246357,-905.67,0.00026461,2]
[341975101,1731340246367,-500.0,0.00026461,2]
[341975104,1731340246378,-500.0,0.00026461,2]
[341975107,1731340246390,-500.0,0.00026461,2]
[341975110,1731340246401,-500.0,0.00026461,2]
[341975113,1731340246413,-500.0,0.00026463,2]
[341975114,1731340246424,-500.0,0.00026517,2]
[341975115,1731340246435,-619.6,0.00026735,2]
[341975116,1731340246445,-905.67,0.00026735,2]
[341975119,1731340246457,-500.0,0.00026735,2]
[341975122,1731340246472,-500.0,0.00026735,2]
[341975126,1731340246484,-500.0,0.00026735,2]
[341975129,1731340246499,-500.0,0.00026735,2]
[341975132,1731340246510,-348.52391819,0.00026737,2]
[341975135,1731340246521,-150.0,0.00026752,2]
[341975137,1731340246531,-1125.0,0.00026752,2]
[341975140,1731340246543,-530.0,0.00026752,2]
[341975143,1731340246554,-2391.0,0.00026752,2]
[341975146,1731340246564,-564.465,0.00026752,2]
[341975149,1731340246575,-173.709,0.00026752,2]
[341975151,1731340246585,-665.67,0.0002679,2]
[341975154,1731340246595,-500.0,0.00026791,2]
[341975156,1731340246606,-793.90372293,0.000268,2]
[341975158,1731340246617,-1010.51,0.00026849,2]
[341975160,1731340246629,-619.6,0.00027009,2]
[341975162,1731340246639,-905.67,0.00027009,2]
[341975164,1731340246650,-332.83360393,0.00027009,2]
[341975166,1731340246660,-194.93,0.00027009,2]
[341975168,1731340246671,-500.0,0.00027009,2]
[341975170,1731340246681,-500.0,0.00027009,2]
[341975172,1731340246691,-500.0,0.00027065,2]
[341975174,1731340246701,-619.6,0.00027283,2]
[341975176,1731340246716,-905.67,0.00027283,2]
[341975178,1731340246727,-500.0,0.00027283,2]
[341975180,1731340246738,-582.7955202,0.00027283,2]
[341975182,1731340246749,-275.56,0.00027339,2]
[341975184,1731340246760,-161.85320236,0.00027397,2]
[341975186,1731340246770,-500.0,0.00027543,7]
[341975188,1731340246781,-619.6,0.00027557,2]
[341975190,1731340246791,-905.67,0.00027557,2]
[341975192,1731340246802,-500.0,0.00027557,2]
[341975194,1731340246813,-805.55104607,0.00027616,2]
[341975196,1731340246828,-3200.0,0.00027809,2]
[341975198,1731340246838,-646.213,0.00027809,2]
[341975200,1731340246848,-150.0,0.00027809,2]
[341975202,1731340246859,-619.6,0.00027831,2]
[341975204,1731340246870,-905.67,0.00027831,2]
[341975206,1731340246881,-500.0,0.00027831,2]
[341975208,1731340246892,-153.0,0.00028019,2]
[341975211,1731340246903,-619.6,0.00028105,2]
[341975214,1731340246913,-905.67,0.00028105,2]
[341975216,1731340246923,-559.97583933,0.00028105,2]
[341975218,1731340246934,-587.0,0.00028216,2]
[341975221,1731340246943,-258.09931944,0.00028371,2]
[341975223,1731340246953,-619.6,0.00028379,2]
[341975226,1731340246965,-905.67,0.00028379,2]
[341975229,1731340246975,-1500.0,0.0002841,5]
[341975232,1731340246985,-1500.0,0.0002841,5]
[341975234,1731340246995,-1500.0,0.0002841,2]
[341975236,1731340247005,-505.56950853,0.00028494,5]
[341975237,1731340247014,-1321.03849095,0.00028618,5]
[341975238,1731340247024,-1395.60081202,0.00028626,5]
[341975240,1731340247034,-1500.0,0.00028628,5]
[341975242,1731340247043,-619.6,0.00028653,2]
[341975244,1731340247052,-905.67,0.00028653,2]
[341975246,1731340247062,-665.67,0.00028734,2]
[341975248,1731340247071,-157.783,0.0002887,2]
[341975250,1731340247083,-619.6,0.00028927,2]
[341975253,1731340247092,-905.67,0.00028927,2]
[341975256,1731340247102,-157.805,0.0002901,10]
[341975259,1731340247111,-587.0,0.0002903,2]
[341975262,1731340247121,-202.18850592,0.00029041,120]
[341975264,1731340247130,-619.6,0.00029201,2]
[341975266,1731340247139,-905.67,0.00029201,2]